bitfinex-derivatives/quotes_ETHF0:USTF0_20250903
["timestamp","ask_amount","ask_price","bid_price","bid_amount"]
[1756857891290,3.2078,4322.2,4322.1,0.6921]
[1756857891799,3.5802,4322.2,4322.1,0.6921]
[1756857892096,3.5802,4322.2,4322.1,0.4897]
[1756857893198,3.5802,4322.2,4322.1,0.6921]
[1756857896203,3.394,4322.2,4322.1,0.6921]
[1756857897099,3.5802,4322.2,4322.1,0.4897]
[1756857897298,3.6966,4322.2,4322.1,0.4897]
[1756857897802,3.5802,4322.2,4322.1,0.4897]
[1756857898904,3.5802,4322.2,4322.1,0.6921]
[1756857900497,3.6966,4322.2,4322.1,0.2906]
[1756857900702,3.5802,4322.2,4322.1,0.4897]
[1756857901001,3.5802,4322.2,4322.1,0.2906]
[1756857901205,3.8152,4322.2,4321.8,0.2906]
[1756857901405,0.4888,4321.9,4321.8,0.2906]
[1756857902299,0.3724,4321.9,4321.8,0.4897]
[1756857902505,0.3724,4321.9,4321.8,0.6921]
[1756857903603,3.2078,4322.2,4322.1,0.4015]
[1756857903906,3.2078,4322.8,4322.2,0.2906]
[1756857904100,3.2078,4322.8,4322.7,0.6921]
[1756857904101,3.394,4322.8,4322.7,0.6921]
[1756857904905,3.2078,4322.8,4322.7,0.6921]
[1756857905104,3.5802,4322.8,4322.7,0.6921]
[1756857909205,3.394,4322.8,4322.7,0.6921]
[1756857909501,3.5803,4322.8,4322.7,0.6921]
[1756857909902,3.6967,4322.8,4322.7,0.2906]
[1756857910098,0.489,4322.2,4321.6,3.2078]
[1756857910298,0.489,4321.6,4321.5,0.18456695]
[1756857910597,0.489,4321.6,4321.5,0.47516695]
[1756857910799,0.3726,4321.6,4321.5,0.87666695]
[1756857910997,0.3726,4321.6,4321.5,0.6921]
[1756857911199,0.3726,4321.6,4321.5,0.8106]
[1756857911600,0.1863,4321.6,4321.5,0.8106]
[1756857911806,0.1867,4321.9,4321.8,0.7069]
[1756857912206,0.18558783,4323.6,4321.8,0.7069]
[1756857912207,3.2078,4322.5,4321.9,0.3073]
[1756857912407,3.2078,4322.5,4321.6,3.2078]
[1756857912408,0.6084,4322.4,4322.3,0.505]
[1756857912609,0.7251,4322.4,4322.3,0.3073]
[1756857912908,0.6084,4322.4,4322.3,0.505]
[1756857914003,0.235,4322.8,4322.4,0.3073]
[1756857914205,2.06716951,4324.9,4322.3,4.0]
[1756857914206,0.235,4323.3,4322.7,0.3996]
[1756857914502,0.3734,4322.8,4322.7,0.3996]
[1756857914698,0.3734,4322.8,4322.2,0.3073]
[1756857914699,3.6979,4322.8,4322.2,0.3073]
[1756857915102,3.9339,4322.8,4322.2,0.3073]
[1756857916110,0.3734,4322.3,4322.2,0.3073]
[1756857916406,0.1867,4321.8,4321.7,0.7069]
[1756857916606,0.236,4322.3,4321.8,0.3073]
[1756857916810,0.1867,4321.9,4321.8,0.3996]
[1756857917011,0.1867,4321.9,4321.8,0.7069]
[1756857917609,0.236,4322.3,4321.8,0.3996]
[1756857917811,0.1867,4322.4,4322.3,0.3073]
[1756857918109,0.3734,4322.4,4322.3,0.505]
[1756857918313,0.1167,4322.3,4321.2,0.3073]
[1756857918502,3.4438,4322.2,4321.2,0.23138]
[1756857918701,0.1867,4321.4,4321.3,0.93828]
[1756857919009,0.1867,4321.4,4321.3,0.7069]
[1756857921412,3.4438,4322.2,4321.5,0.1249]
[1756857921713,3.67519,4322.2,4321.6,0.3073]
[1756857922214,3.5812,4322.2,4322.1,0.505]
[1756857922407,3.5812,4322.2,4321.5,0.1249]
[1756857922408,0.1167,4322.1,4321.2,0.3073]
[1756857922613,0.3734,4321.3,4321.2,0.7069]
[1756857923000,0.3734,4321.3,4321.2,0.505]
[1756857924014,0.3734,4321.3,4321.2,0.7069]
[1756857924714,0.4898,4321.3,4321.2,0.3073]
[1756857925014,0.3734,4321.3,4321.2,0.505]
[1756857925215,0.4898,4321.3,4321.2,0.505]
[1756857925617,0.4898,4321.3,4321.2,0.3073]
[1756857927624,0.3734,4321.3,4321.2,0.505]
[1756857928617,0.1867,4321.3,4321.2,0.7069]
[1756857930517,3.2078,4321.6,4321.3,0.3073]
[1756857930713,3.2078,4322.1,4322.0,0.1249]
[1756857930905,3.394,4322.1,4322.0,0.8318]
[1756857931109,3.6966,4322.1,4321.6,0.3073]
[1756857931310,0.1164,4322.0,4321.3,0.3073]
[1756857931610,0.3724,4321.4,4321.3,0.7069]
[1756857931817,0.1862,4321.4,4321.3,0.7069]
[1756857932218,0.236,4321.9,4321.4,0.3073]
[1756857932518,0.6084,4321.9,4321.8,0.1977]
[1756857932718,0.6084,4321.9,4321.8,0.505]
[1756857933216,0.7248,4321.9,4321.8,0.505]
[1756857933817,0.6084,4321.9,4321.8,0.505]
[1756857934911,0.6084,4321.9,4321.8,0.7069]
[1756857935112,3.2078,4322.1,4322.0,0.1249]
[1756857935419,3.394,4322.1,4322.0,0.8318]
[1756857935811,3.394,4322.1,4322.0,0.7069]
[1756857935812,3.5802,4322.1,4322.0,0.7069]
[1756857936920,3.394,4322.1,4322.0,0.8318]
[1756857937217,3.2078,4322.1,4322.0,0.8318]
[1756857937808,3.394,4322.1,4322.0,0.8318]
[1756857938412,3.5802,4322.1,4322.0,0.7069]
[1756857938614,3.6966,4322.1,4321.2,3.2078]
[1756857938820,0.1862,4321.4,4321.3,0.7069]
[1756857939814,0.3724,4321.4,4321.3,0.7069]
[1756857941716,0.4893,4321.4,4321.3,0.3073]
[1756857941918,0.3724,4321.4,4321.3,0.5172]
[1756857942219,0.4893,4321.4,4321.3,0.5172]
[1756857942420,0.4893,4321.4,4321.3,0.3073]
[1756857942811,0.4893,4321.4,4320.6,0.3186]
[1756857942812,0.374,4320.7,4320.6,0.3186]
[1756857943114,0.374,4320.7,4320.6,0.7318]
[1756857945521,0.4909,4320.7,4320.6,0.3186]
[1756857946125,0.4909,4320.7,4320.6,0.5285]
[1756857946526,0.374,4320.7,4320.6,0.5285]
[1756857946919,0.374,4320.7,4320.6,0.7318]
[1756857948717,0.1169,4320.6,4320.1,0.3186]
[1756857948916,0.374,4320.2,4320.1,0.5285]
[1756857952329,0.4909,4320.2,4320.1,0.3186]
[1756857952531,0.374,4320.2,4320.1,0.7318]
[1756857953820,0.61,4320.2,4320.1,0.7318]
[1756857960242,3.2078,4320.3,4320.1,0.4132]
[1756857960443,3.2078,4320.3,4320.0,0.1256]
[1756857960444,3.2078,4320.3,4320.2,0.7318]
[1756857960939,3.3948,4320.3,4320.2,0.7318]
[1756857962342,3.2078,4320.3,4320.2,0.7318]
[1756857962934,0.1157,4320.4,4320.2,0.4132]
[1756857963141,0.1157,4320.4,4320.3,0.7318]
[1756857963339,0.3027,4320.4,4320.3,0.7318]
[1756857963539,0.4897,4320.4,4320.3,0.5285]
[1756857963946,0.1157,4320.4,4320.3,0.7318]
[1756857967449,0.3006,4320.4,4320.3,0.7318]
[1756857967652,0.4855,4320.4,4320.3,0.7318]
[1756857967848,3.6933,4320.4,4320.3,0.7318]
[1756857968953,3.3235,4320.4,4320.3,0.7318]
[1756857969749,0.1157,4320.4,4320.3,0.7318]
[1756857970738,0.236,4320.6,4320.3,0.7318]
[1756857971048,0.236,4320.8,4320.7,0.4132]
[1756857971241,0.236,4320.8,4320.7,0.7318]
[1756857972143,3.3235,4321.0,4320.7,0.7318]
[1756857972452,3.3235,4321.0,4320.9,0.7185]
[1756857976048,0.1157,4321.0,4320.9,0.7185]
[1756857978653,3.2078,4321.6,4320.9,0.4041]
[1756857978853,3.2078,4321.6,4321.5,0.8358]
[1756857984262,3.4428,4322.3,4321.6,0.3144]
[1756857984562,3.8547,4322.3,4322.2,0.5201]
[1756857985065,4.0869,4322.3,4322.2,0.5201]
[1756857985265,4.0869,4322.3,4322.2,0.3144]
[1756857985463,0.2322,4322.2,4321.6,0.3144]
[1756857985653,0.2036,4321.7,4321.6,0.7185]
[1756857987056,0.4119,4321.7,4321.6,0.7185]
[1756857987464,3.2078,4322.3,4321.6,0.4041]
[1756857987667,0.2036,4322.3,4322.2,0.7185]
[1756857987866,0.235,4322.7,4322.2,0.4041]
[1756857988065,0.6469,4322.7,4322.6,0.5201]
[1756857988263,0.2322,4322.6,4321.9,0.3144]
[1756857988464,0.2036,4322.0,4321.9,0.7185]
[1756857988664,0.2322,4322.4,4321.9,0.7185]
[1756857988965,0.2036,4322.2,4322.1,0.7185]
[1756857990766,0.6441,4322.2,4322.1,0.5201]
[1756857990967,0.6441,4322.2,4322.1,0.3144]
[1756857991168,0.4119,4322.2,4322.1,0.7185]
[1756857994665,0.6441,4322.2,4322.1,0.7185]
[1756857994969,0.4119,4322.2,4322.1,0.7185]
[1756857995363,3.2078,4322.4,4322.2,0.3144]
[1756857995570,3.4114,4322.4,4322.3,0.7185]
[1756857995875,3.6197,4322.4,4322.3,0.7185]
[1756857996469,3.2078,4322.4,4322.3,0.7185]
[1756857997269,0.235,4322.9,4322.3,0.4041]
[1756857997465,0.4386,4322.9,4322.8,0.7185]
[1756857998664,0.8791,4322.9,4322.8,0.3144]
[1756857998864,0.8791,4322.9,4322.2,0.3144]
[1756858000067,0.8791,4322.9,4322.8,0.2057]
[1756858000270,0.8791,4322.9,4322.8,0.5201]
[1756858000868,0.8791,4322.9,4322.8,0.3144]
[1756858002466,0.8791,4322.9,4322.8,0.5205]
[1756858002671,0.6469,4322.9,4322.8,0.7296]
[1756858003271,0.8793,4322.9,4322.8,0.5205]
[1756858003765,0.8793,4322.9,4322.8,0.3144]
[1756858004867,0.6443,4322.9,4322.8,0.3144]
[1756858005670,0.4119,4322.9,4322.8,0.5205]
[1756858005970,0.235,4323.0,4322.8,0.7296]
[1756858006173,0.235,4323.0,4322.8,0.4152]
[1756858006365,0.4286,4323.0,4322.9,0.7163]
[1756858006562,0.8656,4323.0,4322.9,0.5072]
[1756858006766,0.6306,4322.4,4322.3,0.3011]
[1756858006973,0.1936,4321.7,4321.6,0.7163]
[1756858007667,0.2324,4322.3,4321.6,0.4152]
[1756858007868,0.2324,4322.3,4321.7,0.3011]
[1756858008070,0.2324,4322.3,4321.7,0.7163]
[1756858008071,0.1936,4321.8,4321.7,0.7163]
[1756858008272,0.2324,4322.3,4321.7,0.4152]
[1756858008462,0.3982,4321.9,4321.8,0.7163]
[1756858009874,0.2324,4322.3,4321.8,0.4152]
[1756858010067,3.4428,4322.4,4321.9,0.3011]
[1756858010268,0.1936,4322.0,4321.9,0.7163]
[1756858010974,0.6306,4322.0,4321.9,0.3011]
[1756858011172,0.6306,4322.0,4321.9,0.5072]
[1756858011574,0.1936,4322.0,4321.9,0.4152]
[1756858011774,3.6752,4322.4,4321.9,0.4152]
[1756858012072,0.3982,4322.0,4321.9,0.4152]
[1756858012273,0.3982,4322.0,4321.9,0.7163]
[1756858014469,0.1936,4322.0,4321.9,0.7163]
[1756858014669,3.4428,4322.4,4322.3,0.7163]
[1756858015176,4.0734,4322.4,4322.3,0.7163]
[1756858015472,3.841,4322.4,4322.3,0.7163]
[1756858015672,3.6364,4322.4,4322.3,0.7163]
[1756858016369,0.2324,4322.8,4322.3,0.7163]
[1756858016570,0.1936,4322.5,4322.4,0.3011]
[1756858016770,3.606,4322.5,4322.4,0.5072]
[1756858017075,4.19299898,4322.5,4321.8,0.3011]
[1756858017369,0.3982,4321.9,4321.8,0.7163]
[1756858018261,0.3982,4321.9,4321.8,0.5072]
[1756858018464,0.6306,4321.9,4321.8,0.3011]
[1756858018670,0.1936,4321.2,4321.1,0.7163]
[1756858019076,0.2324,4321.6,4321.1,0.7163]
[1756858019278,0.1936,4321.2,4321.1,0.7163]
[1756858019578,3.2078,4322.0,4321.9,0.7163]
[1756858020462,3.8384,4322.0,4321.9,0.7163]
[1756858020663,3.606,4322.0,4321.9,0.7163]
[1756858021172,0.2324,4321.9,4321.1,0.3011]
[1756858021378,0.1936,4321.2,4321.1,0.7163]
[1756858022876,3.8384,4321.2,4321.1,0.5072]
[1756858023077,0.1936,4321.1,4321.0,0.7163]
[1756858023380,3.2078,4321.2,4321.0,0.7163]
[1756858023381,3.2078,4321.2,4321.1,0.7163]
[1756858024271,3.4014,4321.2,4321.1,0.7163]
[1756858024471,3.606,4321.2,4321.1,0.7163]
[1756858025976,3.8384,4321.2,4320.6,0.3011]
[1756858026478,0.1936,4320.5,4320.4,0.7163]
[1756858028279,0.2324,4321.0,4320.4,0.4152]
[1756858028583,0.1936,4320.6,4320.5,0.7163]
[1756858029485,0.1936,4320.6,4320.5,0.8338]
[1756858031086,0.4674,4321.1,4320.5,0.5327]
[1756858031287,0.8768,4321.1,4321.0,0.1954]
[1756858031485,0.8768,4321.1,4321.0,0.5131]
[1756858031687,0.6444,4321.1,4321.0,0.711]
[1756858032176,0.4094,4321.1,4321.0,0.711]
[1756858032875,3.2078,4321.2,4321.1,0.711]
[1756858033282,3.4036,4321.2,4321.1,0.711]
[1756858034188,3.6172,4321.2,4321.1,0.711]
[1756858036688,3.2078,4321.2,4321.1,0.711]
[1756858037884,3.4036,4321.2,4321.1,0.711]
[1756858038392,3.6172,4321.2,4321.1,0.711]
[1756858039086,3.8497,4321.2,4320.5,0.1175]
[1756858039288,0.6419,4320.7,4320.3,0.3177]
[1756858039593,3.8497,4320.7,4320.6,0.1954]
[1756858039783,3.8497,4320.7,4320.6,0.5131]
[1756858040185,0.4094,4320.7,4320.6,0.711]
[1756858046491,0.1958,4320.7,4320.6,0.711]
[1756858046693,3.4036,4321.2,4321.1,0.711]
[1756858050299,0.2325,4322.3,4321.2,0.3177]
[1756858050503,0.82296194,4322.2,4321.6,0.3177]
[1756858050802,0.82296194,4322.2,4322.0,0.711]
[1756858050803,0.99736194,4322.1,4322.0,0.711]
[1756858051001,0.4094,4322.1,4322.0,0.711]
[1756858051699,3.2078,4322.5,4322.1,0.3177]
[1756858051896,3.4036,4322.5,4322.4,0.3933]
[1756858052095,3.99210685,4322.5,4322.4,0.711]
[1756858053606,3.4036,4322.5,4322.4,0.711]
[1756858053902,3.6172,4322.5,4322.4,0.711]
[1756858055106,3.8497,4322.5,4322.4,0.3177]
[1756858056808,3.8497,4322.5,4322.4,0.5131]
[1756858057403,3.6172,4322.5,4321.9,3.2078]
[1756858057701,0.4094,4322.1,4322.0,0.711]
[1756858057904,3.2078,4322.5,4322.0,0.5154]
[1756858058101,3.4036,4322.5,4322.4,0.711]
[1756858058404,3.8497,4322.5,4321.9,3.2078]
[1756858058606,0.6419,4322.1,4322.0,0.3177]
[1756858060507,0.6419,4322.1,4322.0,0.5131]
[1756858060809,0.4094,4322.1,4322.0,0.711]
[1756858063902,3.2078,4322.5,4322.0,0.711]
[1756858064108,0.2147,4322.2,4322.1,0.7165]
[1756858064311,0.428,4322.2,4322.1,0.7165]
[1756858064610,0.6597,4322.2,4322.1,0.7165]
[1756858064809,0.428,4322.2,4322.1,0.7165]
[1756858066012,0.6597,4322.2,4321.7,0.235]
[1756858066209,0.6597,4322.2,4321.6,5.57]
[1756858066210,0.2317,4322.1,4321.6,5.57]
[1756858066412,0.2147,4321.8,4321.7,0.7165]
[1756858066614,0.428,4321.5,4320.6,5.335]
[1756858066815,3.2078,4321.3,4320.7,0.3185]
[1756858067017,0.2147,4320.8,4320.7,0.7165]
[1756858070214,3.2078,4321.3,4320.7,0.7165]
[1756858070414,3.2078,4321.3,4320.8,0.3185]
[1756858070614,0.2147,4320.9,4320.8,0.5215]
[1756858070813,0.2147,4320.9,4320.8,0.7165]
[1756858072625,3.2078,4321.3,4320.8,0.398]
[1756858072820,3.6358,4321.3,4321.2,0.398]
[1756858073119,32.21473561,4323.2,4321.7,0.398]
[1756858073120,3.2078,4321.8,4321.7,0.398]
[1756858073311,3.2078,4321.8,4321.7,0.7165]
[1756858074324,0.235,4322.2,4321.8,0.3185]
[1756858074615,0.663,4322.2,4322.1,0.7165]
[1756858074821,0.428,4322.2,4322.1,0.7165]
[1756858075919,0.2147,4322.2,4322.1,0.7165]
[1756858076216,3.4428,4322.5,4322.2,0.3185]
[1756858076422,3.4225,4322.5,4322.4,0.7165]
[1756858076821,3.2078,4322.5,4322.4,0.7165]
[1756858077326,3.4225,4322.5,4322.4,0.7165]
[1756858077622,0.2147,4322.5,4322.4,0.7165]
[1756858078519,3.2078,4323.1,4323.0,0.8413]
[1756858079223,3.4225,4323.1,4323.0,0.8413]
[1756858079411,3.4428,4323.6,4323.0,0.8413]
[1756858079615,3.4225,4323.6,4323.5,0.398]
[1756858079824,3.4225,4323.6,4323.5,0.7165]
[1756858080422,3.6358,4323.6,4323.5,0.7165]
[1756858082627,3.8675,4323.6,4323.5,0.5215]
[1756858082824,3.6358,4323.6,4323.5,0.7165]
[1756858083623,3.8675,4323.6,4323.5,0.5215]
[1756858083927,0.428,4322.8,4322.7,0.7165]
[1756858084128,0.2147,4322.8,4322.7,0.7165]
[1756858090431,0.428,4322.2,4322.1,9.0643]
[1756858090630,0.428,4322.2,4322.1,0.7165]
[1756858090827,0.6598,4322.2,4322.1,0.5215]
[1756858091231,0.6598,4322.2,4321.6,0.3189]
[1756858091537,0.403,4321.7,4321.6,0.7398]
[1756858094332,0.1938,4321.7,4321.6,0.7398]
[1756858094938,0.6354,4321.7,4321.6,0.3189]
[1756858095132,0.6354,4321.7,4321.0,3.3326]
[1756858095133,0.6354,4321.7,4321.1,0.3189]
[1756858095533,0.6354,4321.7,4321.6,0.206]
[1756858095733,0.6354,4321.7,4321.6,0.5249]
[1756858097432,0.403,4321.7,4321.6,0.5249]
[1756858098331,0.403,4321.7,4321.6,0.7398]
[1756858098536,3.2078,4321.8,4321.7,0.3189]
[1756858098734,3.4016,4321.8,4321.7,0.7398]
[1756858098936,3.8432,4321.8,4321.7,0.3189]
[1756858099136,3.6108,4321.8,4321.7,0.5249]
[1756858099528,3.6108,4321.8,4321.7,0.7398]
[1756858099734,3.8432,4321.8,4321.0,3.5676]
[1756858100034,0.1938,4321.2,4321.1,0.7398]
[1756858100739,3.2078,4321.8,4321.2,0.3189]
[1756858100946,3.2078,4321.8,4321.7,0.5249]
[1756858100947,3.6108,4321.8,4321.7,0.5249]
[1756858101339,3.2078,4321.8,4321.7,0.7398]
[1756858101536,3.4016,4321.8,4321.7,0.7398]
[1756858102240,3.6108,4321.8,4321.7,0.7398]
[1756858107148,3.6108,4321.8,4321.7,0.5249]
[1756858107149,3.8432,4321.8,4321.7,0.5249]
[1756858109754,0.403,4321.8,4321.7,0.7398]
[1756858110345,3.2078,4322.3,4321.8,0.3189]
[1756858110545,3.4016,4322.3,4322.2,0.4209]
[1756858110747,3.6108,4322.3,4322.2,0.7398]
[1756858112353,3.8432,4322.3,4322.2,0.7398]
[1756858112650,3.8432,4322.3,4322.2,0.3189]
[1756858113753,3.8432,4322.3,4322.2,0.5249]
[1756858114557,4.0782,4322.3,4322.2,0.5249]
[1756858115656,4.0782,4322.3,4321.9,0.3189]
[1756858115856,0.6354,4321.7,4321.6,0.3189]
[1756858116359,0.6354,4321.7,4321.6,0.5249]
[1756858116565,0.403,4321.7,4321.6,0.7398]
[1756858118162,0.6354,4321.7,4321.6,0.7398]
[1756858118464,0.403,4321.7,4321.6,0.7398]
[1756858120158,0.6354,4321.7,4321.6,0.5249]
[1756858120359,0.403,4321.7,4321.6,0.7398]
[1756858120867,0.1938,4321.7,4321.6,0.7398]
[1756858121468,0.403,4321.7,4321.6,0.7398]
[1756858131174,0.6348,4321.7,4321.6,0.7398]
[1756858132076,0.403,4321.7,4321.6,0.7398]
[1756858134575,0.1938,4321.7,4321.6,0.7398]
[1756858134781,3.2078,4321.8,4321.7,0.7256]
[1756858134979,3.6058,4321.8,4321.7,0.7256]
[1756858135280,3.8376,4321.8,4321.7,0.5264]
[1756858136168,3.8376,4321.8,4321.0,3.4155]
[1756858136169,0.398,4321.1,4321.0,3.4155]
[1756858136482,0.398,4321.1,4321.0,3.7342]
[1756858136979,0.398,4321.1,4321.0,3.9334]
[1756858137877,0.2021,4321.1,4321.0,3.9334]
[1756858138178,0.2021,4321.1,4321.0,0.7256]
[1756858141081,0.2021,4321.1,4321.0,0.8447]
[1756858141987,0.2318,4321.0,4320.2,0.3187]
[1756858142170,0.2318,4320.2,4319.4,0.3187]
[1756858142374,0.2021,4319.5,4319.4,0.7256]
[1756858142773,0.398,4319.5,4319.4,0.7256]
[1756858146184,0.6306,4319.5,4319.4,0.3187]
[1756858146695,0.6306,4319.5,4319.4,0.5264]
[1756858147082,0.398,4319.5,4319.4,0.7256]
[1756858148286,3.4404,4320.1,4319.5,0.1191]
[1756858148484,0.43359001,4320.0,4319.9,0.7256]
[1756858148689,0.86449001,4320.0,4319.9,0.5264]
[1756858149085,0.86449001,4320.0,4319.1,0.3187]
[1756858149395,0.46411001,4319.9,4319.1,0.3187]
[1756858150082,0.2326,4319.9,4319.1,0.3187]
[1756858150493,0.46411001,4319.9,4319.1,0.3187]
[1756858151685,0.63991001,4319.9,4319.8,0.7016]
[1756858151886,0.87301001,4319.9,4319.8,0.7016]
[1756858152086,0.87301001,4319.9,4319.8,0.5029]
[1756858152793,0.6415,4319.9,4319.8,0.5029]
[1756858153296,0.4084,4319.9,4319.8,0.7016]
[1756858153690,0.6415,4319.9,4319.8,0.5029]
[1756858154395,0.4084,4319.9,4319.8,0.7016]
[1756858155198,3.2078,4320.1,4319.8,0.4064]
[1756858155497,0.4151,4320.0,4319.9,0.6904]
[1756858156900,3.2078,4320.1,4320.0,0.2952]
[1756858157098,3.4166,4320.1,4320.0,0.6904]
[1756858158097,3.6229,4320.1,4320.0,0.6904]
[1756858158491,3.856,4320.1,4320.0,0.6904]
[1756858158793,3.6229,4320.1,4320.0,0.6904]
[1756858159999,3.856,4320.1,4320.0,0.6904]
[1756858160594,3.6229,4320.1,4320.0,0.6904]
[1756858162501,3.856,4320.1,4320.0,0.6904]
[1756858162703,3.856,4320.1,4320.0,0.4917]
[1756858163596,3.6229,4320.1,4320.0,0.6904]
[1756858163805,0.4151,4320.1,4320.0,0.6904]
[1756858164597,0.6501,4320.1,4320.0,0.6904]
[1756858164803,0.4438,4320.1,4320.0,0.8105]
[1756858165104,0.4438,4320.1,4320.0,0.6904]
[1756858165604,0.6501,4320.1,4320.0,0.6904]
[1756858166501,0.2331,4320.0,4319.1,0.2952]
[1756858166802,0.2088,4319.2,4319.1,0.6904]
[1756858167205,0.3781,4319.7,4319.1,0.6904]
[1756858167398,0.5869,4319.7,4319.6,0.1965]
[1756858167604,0.5601,4319.7,4319.6,0.6904]
[1756858171507,0.7932,4319.7,4319.6,0.6904]
[1756858171708,1.38125837,4319.7,4319.6,0.2952]
[1756858171909,1.38125837,4319.7,4319.1,0.2952]
[1756858172109,3.856,4319.5,4319.4,0.4917]
[1756858173017,3.6229,4319.5,4319.4,0.6904]
[1756858173216,3.856,4319.5,4319.4,0.2952]
[1756858174111,3.856,4319.5,4319.4,0.4917]
[1756858174415,3.856,4319.5,4319.4,0.6904]
[1756858174416,3.6229,4319.5,4319.4,0.6904]
[1756858175105,3.8579,4319.5,4319.4,0.6904]
[1756858175510,3.4166,4319.5,4319.4,0.6904]
[1756858175718,3.6516,4319.5,4319.4,0.6904]
[1756858175918,3.4428,4319.5,4319.4,0.6904]
[1756858176419,3.6516,4319.5,4319.4,0.6904]
[1756858177720,4.091,4319.5,4319.4,0.6904]
[1756858177920,4.091,4319.5,4319.4,0.2952]
[1756858179514,0.2331,4319.4,4318.6,0.2952]
[1756858179710,0.2088,4318.8,4318.7,0.6904]
[1756858180820,0.235,4319.1,4319.0,0.1201]
[1756858181119,0.4438,4319.1,4319.0,0.6948]
[1756858182121,0.4438,4319.1,4319.0,0.6904]
[1756858182517,3.2078,4319.5,4319.0,0.6904]
[1756858182518,3.2078,4319.5,4319.0,0.8186]
[1756858182721,1.02514515,4319.4,4319.3,0.4007]
[1756858182923,1.22104515,4319.4,4319.3,0.6919]
[1756858183220,1.51374515,4319.4,4319.3,0.6919]
[1756858184823,1.51374515,4319.4,4319.3,0.4905]
[1756858185821,1.51374515,4319.4,4319.3,0.6919]
[1756858187129,1.27874515,4319.4,4319.3,0.6919]
[1756858187427,1.51374515,4319.4,4319.3,0.6919]
[1756858187828,1.51374515,4319.4,4319.3,0.4905]
[1756858188128,1.51374515,4319.4,4318.6,0.2912]
[1756858188324,0.6907,4319.3,4319.2,0.1993]
[1756858188526,0.6907,4319.3,4319.2,0.4905]
[1756858188828,0.6907,4319.3,4319.2,0.6919]
[1756858189326,0.398,4319.3,4319.2,0.6919]
[1756858190427,0.4907,4319.9,4319.2,0.4007]
[1756858190628,0.2021,4319.4,4319.3,0.6919]
[1756858190834,0.4371,4319.4,4319.3,0.6919]
[1756858191031,0.235,4319.8,4319.4,0.2912]
[1756858191235,0.79085462,4319.7,4319.6,0.4007]
[1756858191535,1.27946369,4319.7,4319.6,0.2912]
[1756858191836,1.27946369,4319.7,4319.6,0.4905]
[1756858192133,1.27946369,4319.7,4319.6,0.6919]
[1756858192335,1.22176369,4319.7,4319.6,0.6919]
[1756858192928,0.633,4319.7,4319.6,0.6919]
[1756858193730,0.398,4318.9,4318.8,0.6919]
[1756858193930,0.6907,4318.9,4318.8,0.6919]
[1756858195334,0.398,4318.9,4318.8,0.6919]
[1756858197333,3.4099,4319.3,4319.2,0.4007]
[1756858197637,4.23363064,4319.3,4319.2,0.6919]
[1756858197831,0.198,4319.9,4319.2,7.84002]
[1756858198024,0.198,4319.9,4319.7,3.2078]
[1756858198429,0.198,4319.9,4319.8,0.23149]
[1756858198930,0.4907,4319.9,4319.7,7.2078]
[1756858199232,0.2927,4319.8,4319.7,3.2078]
[1756858200136,0.198,4319.9,4319.7,3.2078]
[1756858200337,0.4907,4319.9,4319.7,3.2078]
[1756858200531,0.1157,4320.3,4319.8,0.23149]
[1756858200741,0.2927,4321.1,4320.2,3.2078]
[1756858201033,0.2021,4321.4,4320.8,3.2078]
[1756858201334,0.2927,4321.1,4320.8,3.2078]
[1756858201535,0.2927,4321.3,4320.8,3.2078]
[1756858201733,0.2021,4320.9,4320.8,3.2078]
[1756858201933,0.6907,4320.9,4320.8,3.2078]
[1756858202833,0.4948,4320.9,4320.8,3.2078]
[1756858203725,0.68202742,4320.9,4320.8,3.2078]
[1756858204134,0.47992742,4320.9,4320.8,3.2078]
[1756858204842,0.68202742,4320.9,4320.8,3.2078]
[1756858205339,0.47992742,4320.9,4320.8,3.2078]
[1756858205940,0.47977988,4320.9,4320.8,3.2078]
[1756858206336,0.2927,4320.9,4320.8,3.2078]
[1756858207836,0.2927,4321.4,4320.8,3.2078]
[1756858208040,0.47976741,4321.3,4320.9,0.235]
[1756858208239,0.2927,4321.3,4320.9,0.235]
[1756858208439,0.2021,4321.2,4320.9,0.235]
[1756858208640,0.8176,4321.0,4320.9,0.235]
[1756858209038,0.8176,4321.0,4320.8,3.2078]
[1756858209242,0.8176,4320.5,4320.4,0.235]
[1756858209539,0.2927,4320.4,4320.3,3.2078]
[1756858209744,0.6907,4320.4,4320.3,3.2078]
[1756858213145,0.6907,4320.4,4320.0,0.235]
[1756858213456,0.195,4319.6,4319.1,30.57]
[1756858213645,0.5047,4319.9,4319.2,0.235]
[1756858216848,0.7157,4319.1,4319.0,3.2078]
[1756858218747,0.3097,4319.1,4319.0,3.2078]
[1756858219450,0.3097,4319.4,4319.0,3.2078]
[1756858219650,0.3097,4319.4,4319.1,0.235]
[1756858220049,0.3097,4319.7,4319.1,0.235]
[1756858220250,0.38201834,4319.6,4319.0,3.2078]
[1756858220550,0.81741834,4319.5,4319.1,0.235]
[1756858220752,0.6304,4319.5,4319.1,0.235]
[1756858220954,3.4028,4319.8,4319.1,0.235]
[1756858221144,0.69173215,4319.7,4319.1,0.235]
[1756858221344,0.38203215,4319.6,4319.1,0.235]